fUST/lending_fUST_20240525
["ID","MTS","AMOUNT","RATE_DAILY","PERIOD"]
[327876584,1716573047776,-151.0,0.000263,2]
[327876585,1716573047786,-151.0,0.000263,2]
[327876586,1716573047795,-151.0,0.000263,2]
[327876587,1716573047804,-151.0,0.000263,2]
[327876588,1716573047814,-8781.26,0.000263,20]
[327876589,1716573047824,-500.0,0.000263,3]
[327876590,1716573047834,-500.0,0.00026301,8]
[327876591,1716573047844,-619.7,0.00026301,8]
[327876592,1716573047853,-500.0,0.00026301,8]
[327876593,1716573047863,-500.0,0.00026301,8]
[327876594,1716573047873,-500.0,0.00026301,8]
[327876595,1716573047882,-500.0,0.00026301,8]
[327876596,1716573047892,-500.0,0.00026301,8]
[327876597,1716573047902,-186.28,0.00026301,8]
[327876598,1716573047911,-500.0,0.00026301,8]
[327876599,1716573047922,-597.87,0.00026301,8]
[327876600,1716573047931,-500.0,0.00026301,8]
[327876601,1716573047941,-754.5,0.00026301,8]
[327876602,1716573047952,-500.0,0.00026301,8]
[327876603,1716573047962,-500.0,0.00026301,8]
[327876604,1716573047972,-151.0,0.00026301,2]
[327876605,1716573047982,-151.0,0.00026301,2]
[327876606,1716573047996,-714.32,0.00026301,8]
[327876607,1716573048006,-1000.0,0.00026301,2]
[327876608,1716573048016,-500.0,0.00026301,8]
[327876609,1716573048025,-500.0,0.00026301,8]
[327876610,1716573048034,-151.0,0.00026301,2]
[327876611,1716573048043,-151.0,0.00026301,2]
[327876612,1716573048052,-500.0,0.00026301,8]
[327876613,1716573048061,-500.0,0.00026301,8]
[327876614,1716573048070,-675.81,0.00026301,8]
[327876615,1716573048080,-500.0,0.00026301,8]
[327876616,1716573048089,-845.77,0.00026301,8]
[327876617,1716573048099,-500.0,0.00026301,8]
[327876618,1716573048109,-587.45,0.00026301,8]
[327876619,1716573048118,-500.0,0.00026301,8]
[327876620,1716573048128,-3455.13,0.00026301,8]
[327876621,1716573048138,-891.23,0.00026301,8]
[327876622,1716573048148,-500.0,0.00026301,8]
[327876623,1716573048157,-159.23,0.00026301,8]
[327876624,1716573048166,-417.62581018,0.00026301,8]
[327876625,1716573048175,-500.0,0.00026301,8]
[327876626,1716573048185,-500.0,0.00026301,8]
[327876627,1716573048194,-1415.81,0.00026301,8]
[327876628,1716573048204,-4831.14,0.00026301,8]
[327876629,1716573048213,-737.37,0.00026301,8]
[327876630,1716573048223,-500.0,0.00026301,8]
[327876631,1716573048233,-675.84,0.00026301,8]
[327876632,1716573048244,-500.0,0.00026301,8]
[327876633,1716573048254,-619.39,0.00026301,8]
[327876634,1716573048262,-696.11,0.00026301,8]
[327876635,1716573048272,-252.94,0.00026301,8]
[327876636,1716573048281,-1765.24,0.00026301,8]
[327876637,1716573048290,-500.0,0.00026301,8]
[327876638,1716573048299,-558.88,0.00026301,8]
[327876639,1716573048310,-532.28,0.00026301,8]
[327876640,1716573048319,-777.93,0.00026301,8]
[327876641,1716573048330,-5617.02,0.00026301,8]
[327876642,1716573048339,-617.46,0.00026301,8]
[327876643,1716573048349,-1118.82,0.00026301,8]
[327876644,1716573048359,-6010.23,0.00026301,8]
[327876645,1716573048369,-1742.08,0.00026301,8]
[327876646,1716573048378,-544.45,0.00026301,8]
[327876647,1716573048388,-219.08170626,0.00026301,8]
[327876648,1716573048398,-500.0,0.00026301,8]
[327876649,1716573048407,-500.0,0.00026301,8]
[327876650,1716573048418,-366.66027768,0.00026301,8]
[327876651,1716573048430,-500.0,0.00026301,8]
[327876652,1716573048440,-548.94,0.00026301,8]
[327876653,1716573048449,-529.82,0.00026301,8]
[327876654,1716573048459,-1000.0,0.00026313,2]
[327876655,1716573048468,-1000.0,0.00026316,2]
[327876656,1716573048478,-496.0,0.00026327,2]
[327876657,1716573048487,-151.545,0.00026327,2]
[327876658,1716573048501,-209.541,0.00026327,2]
[327876659,1716573048511,-4226.56801723,0.00026338,2]
[327876660,1716573048521,-1000.0,0.00026339,2]
[327876661,1716573048530,-417.57091557,0.00026344,2]
[327876662,1716573048539,-1000.0,0.00026356,2]
[327876663,1716573048549,-500.0,0.00026369,3]
[327876664,1716573048558,-1000.0,0.00026374,2]
[327876665,1716573048568,-8781.26,0.00026388,21]
[327876666,1716573048577,-8781.26,0.00026388,21]
[327876667,1716573048586,-8781.26,0.00026388,21]
[327876668,1716573048595,-8781.26,0.00026388,21]
[327876669,1716573048605,-8781.40917344,0.00026388,21]
[327876670,1716573048614,-245.085537,0.00026388,2]
[327876671,1716573048623,-245.085537,0.00026388,2]
[327876672,1716573048633,-151.0,0.00026388,2]
[327876673,1716573048642,-151.0,0.00026388,2]
[327876674,1716573048651,-751.740491,0.00026388,2]
[327876675,1716573048660,-751.740491,0.00026388,2]
[327876676,1716573048671,-151.0,0.00026388,2]
[327876677,1716573048681,-676.570388,0.00026388,2]
[327876678,1716573048691,-676.570388,0.00026388,2]
[327876679,1716573048700,-151.0,0.00026388,2]
[327876680,1716573048710,-1000.0,0.00026397,2]
[327876681,1716573048719,-388.0,0.000264,2]
[327876682,1716573048728,-1000.0,0.00026444,2]
[327876683,1716573048739,-151.0,0.00026449,2]
[327876684,1716573048750,-428.967344,0.00026449,2]
[327876685,1716573048760,-428.967344,0.00026449,2]
[327876686,1716573048770,-151.0,0.00026505,5]
[327876687,1716573048780,-500.0,0.00026574,3]
[327876688,1716573048790,-619.7,0.00026575,9]
[327876689,1716573048799,-500.0,0.00026575,9]
[327876690,1716573048809,-500.0,0.00026575,9]
[327876691,1716573048818,-500.0,0.00026575,9]
[327876692,1716573048827,-500.0,0.00026575,9]
[327876693,1716573048837,-500.0,0.00026575,9]
[327876694,1716573048846,-151.0,0.00026575,2]
[327876695,1716573048856,-151.0,0.00026575,2]
[327876696,1716573048866,-291.11,0.00026575,9]
[327876697,1716573048876,-597.87,0.00026575,9]
[327876698,1716573048886,-500.0,0.00026575,9]
[327876699,1716573048895,-754.5,0.00026575,9]
[327876700,1716573048904,-500.0,0.00026575,9]
[327876701,1716573048913,-500.0,0.00026575,9]
[327876702,1716573048923,-714.32,0.00026575,9]
[327876703,1716573048932,-500.0,0.00026575,9]
[327876704,1716573048941,-500.0,0.00026575,9]
[327876705,1716573048950,-500.0,0.00026575,9]
[327876706,1716573048959,-500.0,0.00026575,9]
[327876707,1716573048969,-675.81,0.00026575,9]
[327876708,1716573048978,-845.77,0.00026575,9]
[327876709,1716573048988,-151.0,0.00026575,2]
[327876710,1716573049000,-151.0,0.00026575,2]
[327876711,1716573049010,-151.0,0.00026575,2]
[327876712,1716573049019,-500.0,0.00026575,9]
[327876713,1716573049028,-151.0,0.00026575,2]
[327876714,1716573049037,-219.626761,0.00026575,2]
[327876715,1716573049047,-151.0,0.00026575,2]
[327876716,1716573049170,-151.0,0.00026575,2]
[327876717,1716573049180,-151.0,0.00026575,2]
[327876718,1716573049189,-587.45,0.00026575,9]
[327876719,1716573049198,-162.16,0.00026575,9]
[327876720,1716573049207,-3455.13,0.00026575,9]
[327876721,1716573049216,-303.386439,0.00026575,2]
[327876722,1716573049226,-891.23,0.00026575,9]
[327876723,1716573049235,-303.386439,0.00026575,2]
[327876724,1716573049246,-500.0,0.00026575,9]
[327876725,1716573049255,-151.0,0.00026575,2]
[327876726,1716573049264,-151.0,0.00026575,2]
[327876727,1716573049274,-500.0,0.00026575,9]
[327876728,1716573049283,-500.0,0.00026575,9]
[327876729,1716573049292,-1415.81,0.00026575,9]
[327876730,1716573049301,-4831.14,0.00026575,9]
[327876731,1716573049311,-737.37,0.00026575,9]
[327876732,1716573049320,-500.0,0.00026575,9]
[327876733,1716573049329,-675.84,0.00026575,9]
[327876734,1716573049338,-500.0,0.00026575,9]
[327876735,1716573049347,-619.39,0.00026575,9]
[327876736,1716573049356,-696.11,0.00026575,9]
[327876737,1716573049365,-1765.24,0.00026575,9]
[327876738,1716573049374,-500.0,0.00026575,9]
[327876739,1716573049383,-558.88,0.00026575,9]
[327876740,1716573049394,-532.28,0.00026575,9]
[327876741,1716573049403,-777.93,0.00026575,9]
[327876742,1716573049413,-617.46,0.00026575,9]
[327876743,1716573049427,-5617.02,0.00026575,9]
[327876744,1716573049436,-1118.82,0.00026575,9]
[327876745,1716573049445,-6010.23,0.00026575,9]
[327876746,1716573049455,-1742.08,0.00026575,9]
[327876747,1716573049464,-544.45,0.00026575,9]
[327876748,1716573049473,-500.0,0.00026575,9]
[327876749,1716573049483,-500.0,0.00026575,9]
[327876750,1716573049493,-500.0,0.00026575,9]
[327876751,1716573049506,-548.94,0.00026575,9]
[327876752,1716573049516,-529.82,0.00026575,9]
[327876753,1716573049525,-1753.48856014,0.0002658,2]
[327876754,1716573049534,-151.0,0.00026848,2]
[327876755,1716573049543,-151.0,0.00026848,2]
[327876756,1716573049553,-269.465102,0.00026848,2]
[327876757,1716573049562,-269.465102,0.00026848,2]
[327876758,1716573049572,-151.0,0.00026848,2]
[327876759,1716573049582,-151.0,0.00026848,2]
[327876760,1716573049591,-151.0,0.00026848,2]
[327876761,1716573049601,-151.0,0.00026848,2]
[327876762,1716573049610,-151.0,0.00026848,2]
[327876763,1716573049619,-151.0,0.00026848,2]
[327876764,1716573049629,-500.0,0.00026848,3]
[327876765,1716573049639,-500.0,0.00026848,3]
[327876766,1716573049648,-500.0,0.00026848,3]
[327876767,1716573049658,-626.65,0.00026848,3]
[327876768,1716573049667,-456.57692779,0.00026849,2]
[327876769,1716573049676,-186.39835571,0.00026849,2]
[327876770,1716573049686,-760.9951019,0.00026849,2]
[327876771,1716573049695,-3025.24016094,0.00026849,2]
[327876772,1716573049704,-13256.40367972,0.00026849,2]
[327876773,1716573049714,-619.7,0.00026849,10]
[327876774,1716573049723,-188.192956,0.00026849,2]
[327876775,1716573049733,-188.192956,0.00026849,2]
[327876776,1716573049744,-500.0,0.00026849,10]
[327876777,1716573049753,-500.0,0.00026849,10]
[327876778,1716573049762,-625.168513,0.00026849,2]
[327876779,1716573049771,-625.168513,0.00026849,2]
[327876780,1716573049781,-500.0,0.00026849,10]
[327876781,1716573049790,-500.0,0.00026849,10]
[327876782,1716573049800,-500.0,0.00026849,10]
[327876783,1716573049809,-597.87,0.00026849,10]
[327876784,1716573049818,-500.0,0.00026849,10]
[327876785,1716573049827,-754.5,0.00026849,10]
[327876786,1716573049836,-500.0,0.00026849,10]
[327876787,1716573049845,-500.0,0.00026849,10]
[327876788,1716573049854,-151.0,0.00026849,2]
[327876789,1716573049863,-247.196944,0.00026849,2]
[327876790,1716573049872,-714.32,0.00026849,10]
[327876791,1716573049881,-500.0,0.00026849,10]
[327876792,1716573049891,-500.0,0.00026849,10]
[327876793,1716573049900,-151.0,0.00026849,2]
[327876794,1716573049909,-377.94362551,0.00026849,10]
[327876795,1716573049918,-500.0,0.00026849,10]
[327876796,1716573049927,-675.81,0.00026849,10]
[327876797,1716573049937,-845.77,0.00026849,10]
[327876798,1716573049946,-500.0,0.00026849,10]
[327876799,1716573049955,-587.45,0.00026849,10]
[327876800,1716573049965,-3455.13,0.00026849,10]
[327876801,1716573049974,-891.23,0.00026849,10]
[327876802,1716573049983,-500.0,0.00026849,10]
[327876803,1716573049993,-500.0,0.00026849,10]
[327876804,1716573050002,-500.0,0.00026849,10]
[327876805,1716573050011,-1415.81,0.00026849,10]
[327876806,1716573050020,-4831.14,0.00026849,10]
[327876807,1716573050030,-737.37,0.00026849,10]
[327876808,1716573050039,-500.0,0.00026849,10]
[327876809,1716573050048,-675.84,0.00026849,10]
[327876810,1716573050057,-500.0,0.00026849,10]
[327876811,1716573050067,-619.39,0.00026849,10]
[327876812,1716573050078,-696.11,0.00026849,10]
[327876813,1716573050087,-1765.24,0.00026849,10]
[327876814,1716573050098,-500.0,0.00026849,10]
[327876815,1716573050107,-558.88,0.00026849,10]
[327876816,1716573050116,-532.28,0.00026849,10]
[327876817,1716573050125,-777.93,0.00026849,10]
[327876818,1716573050134,-617.46,0.00026849,10]
[327876819,1716573050143,-5617.02,0.00026849,10]
[327876820,1716573050153,-751.740491,0.00026849,2]
[327876821,1716573050162,-1118.82,0.00026849,10]
[327876822,1716573050171,-751.740491,0.00026849,2]
[327876823,1716573050182,-151.0,0.00026849,2]
[327876824,1716573050191,-6010.23,0.00026849,10]
[327876825,1716573050201,-1742.08,0.00026849,10]
[327876826,1716573050211,-544.45,0.00026849,10]
[327876827,1716573050221,-500.0,0.00026849,10]
[327876828,1716573050231,-676.570388,0.00026849,2]
[327876829,1716573050240,-676.570388,0.00026849,2]
[327876830,1716573050251,-151.0,0.00026849,2]
[327876831,1716573050260,-500.0,0.00026849,10]
[327876832,1716573050269,-500.0,0.00026849,10]
[327876833,1716573050279,-548.94,0.00026849,10]
[327876834,1716573050288,-681.01880531,0.0002686,2]
[327876835,1716573050297,-151.0,0.00026999,2]
[327876836,1716573050307,-151.0,0.00026999,2]
[327876837,1716573050317,-151.0,0.00026999,2]
[327876838,1716573050326,-428.967344,0.00026999,2]
[327876839,1716573050335,-428.967344,0.00026999,2]
[327876840,1716573050344,-170.0,0.00027,5]
[327876841,1716573050353,-315.0,0.00027,2]
[327876842,1716573050363,-1012.10349864,0.00027123,2]
[327876843,1716573050373,-151.0,0.00027123,2]
[327876844,1716573050383,-151.0,0.00027123,2]
[327876845,1716573050392,-619.7,0.00027123,11]
[327876846,1716573050401,-500.0,0.00027123,11]
[327876847,1716573050412,-500.0,0.00027123,11]
[327876848,1716573050425,-500.0,0.00027123,11]
[327876849,1716573050435,-500.0,0.00027123,11]
[327876850,1716573050444,-500.0,0.00027123,11]
[327876851,1716573050453,-151.0,0.00027123,2]
[327876852,1716573050465,-597.87,0.00027123,11]
[327876853,1716573050474,-500.0,0.00027123,11]
[327876854,1716573050484,-754.5,0.00027123,11]
[327876855,1716573050496,-500.0,0.00027123,11]
[327876856,1716573050505,-500.0,0.00027123,11]
[327876857,1716573050514,-714.32,0.00027123,11]
[327876858,1716573050523,-500.0,0.00027123,11]
[327876859,1716573050532,-500.0,0.00027123,11]
[327876860,1716573050542,-500.0,0.00027123,11]
[327876861,1716573050551,-675.81,0.00027123,11]
[327876862,1716573050561,-845.77,0.00027123,11]
[327876863,1716573050570,-151.0,0.00027123,2]
[327876864,1716573050579,-151.0,0.00027123,2]
[327876865,1716573050588,-166.964246,0.00027123,2]
[327876866,1716573050598,-500.0,0.00027123,11]
[327876867,1716573050607,-151.0,0.00027123,2]
[327876868,1716573050616,-151.0,0.00027123,2]
[327876869,1716573050626,-151.0,0.00027123,2]
[327876870,1716573050636,-587.45,0.00027123,11]
[327876871,1716573050645,-3455.13,0.00027123,11]
[327876872,1716573050654,-303.386439,0.00027123,2]
[327876873,1716573050664,-891.23,0.00027123,11]
[327876874,1716573050673,-303.386439,0.00027123,2]
[327876875,1716573050683,-500.0,0.00027123,11]
[327876876,1716573050692,-151.0,0.00027123,2]
[327876877,1716573050701,-500.0,0.00027123,11]
[327876878,1716573050711,-500.0,0.00027123,11]
[327876879,1716573050720,-1415.81,0.00027123,11]
[327876880,1716573050730,-4831.14,0.00027123,11]
[327876881,1716573050739,-737.37,0.00027123,11]
[327876882,1716573050750,-500.0,0.00027123,11]
[327876883,1716573050759,-675.84,0.00027123,11]
[327876884,1716573050768,-500.0,0.00027123,11]
[327876885,1716573050777,-619.39,0.00027123,11]
[327876886,1716573050786,-245.085537,0.00027123,2]
[327876887,1716573050796,-696.11,0.00027123,11]
[327876888,1716573050805,-245.085537,0.00027123,2]
[327876889,1716573050814,-1765.24,0.00027123,11]
[327876890,1716573050823,-500.0,0.00027123,11]
[327876891,1716573050832,-558.88,0.00027123,11]
[327876892,1716573050842,-532.28,0.00027123,11]
[327876893,1716573050851,-777.93,0.00027123,11]
[327876894,1716573050861,-151.0,0.00027123,2]
[327876895,1716573050870,-151.0,0.00027123,2]
[327876896,1716573050880,-617.46,0.00027123,11]
[327876897,1716573050890,-5617.02,0.00027123,11]
[327876898,1716573050900,-1118.82,0.00027123,11]
[327876899,1716573050911,-6010.23,0.00027123,11]
[327876900,1716573050921,-1742.08,0.00027123,11]
[327876901,1716573050931,-544.45,0.00027123,11]
[327876902,1716573050942,-473.69,0.00027123,11]
[327876903,1716573050952,-500.0,0.00027123,11]
[327876904,1716573050961,-548.94,0.00027123,11]
[327876905,1716573050972,-501.15,0.00027139,2]
[327876906,1716573050982,-500.0,0.00027139,2]
[327876907,1716573050992,-1137.40253748,0.0002739,2]
[327876908,1716573051005,-151.0,0.0002739,2]
[327876909,1716573051014,-151.0,0.0002739,2]
[327876910,1716573051025,-269.465102,0.00027396,2]
[327876911,1716573051035,-269.465102,0.00027396,2]
[327876912,1716573051044,-151.0,0.00027396,2]
[327876913,1716573051054,-151.0,0.00027396,2]
[327876914,1716573051063,-151.0,0.00027396,2]
[327876915,1716573051073,-151.0,0.00027396,2]
[327876916,1716573051082,-24792.16255321,0.00027397,11]
[327876917,1716573051092,-151.0,0.00027397,2]
[327876918,1716573051101,-151.0,0.00027397,2]
[327876919,1716573051111,-619.7,0.00027397,12]
[327876920,1716573051120,-500.0,0.00027397,12]
[327876921,1716573051130,-500.0,0.00027397,12]
[327876922,1716573051139,-500.0,0.00027397,12]
[327876923,1716573051150,-500.0,0.00027397,12]
[327876924,1716573051159,-500.0,0.00027397,12]
[327876925,1716573051169,-597.87,0.00027397,12]
[327876926,1716573051178,-500.0,0.00027397,12]
[327876927,1716573051187,-754.5,0.00027397,12]
[327876928,1716573051197,-500.0,0.00027397,12]
[327876929,1716573051206,-500.0,0.00027397,12]
[327876930,1716573051215,-151.0,0.00027397,2]
[327876931,1716573051224,-714.32,0.00027397,12]
[327876932,1716573051234,-500.0,0.00027397,12]
[327876933,1716573051248,-500.0,0.00027397,12]
[327876934,1716573051257,-151.0,0.00027397,2]
[327876935,1716573051266,-500.0,0.00027397,12]
[327876936,1716573051275,-675.81,0.00027397,12]
[327876937,1716573051284,-845.77,0.00027397,12]
[327876938,1716573051293,-500.0,0.00027397,12]
[327876939,1716573051302,-587.45,0.00027397,12]
[327876940,1716573051311,-3455.13,0.00027397,12]
[327876941,1716573051320,-891.23,0.00027397,12]
[327876942,1716573051330,-500.0,0.00027397,12]
[327876943,1716573051340,-500.0,0.00027397,12]
[327876944,1716573051349,-500.0,0.00027397,12]
[327876945,1716573051359,-1415.81,0.00027397,12]
[327876946,1716573051369,-3720.37412403,0.00027397,12]
[327876947,1716573051645,-500.0,0.00024657,2]
[327876948,1716573051655,-500.0,0.00024931,3]
[327876949,1716573051664,-500.0,0.00024931,3]
[327876950,1716573051674,-500.0,0.00025205,4]
[327876951,1716573051683,-500.0,0.00025205,4]
[327876952,1716573051692,-465.56510077,0.00025479,5]
[327876953,1716573051702,-500.0,0.00025479,5]
[327876954,1716573051711,-500.0,0.00025753,6]
[327876955,1716573051720,-529.82,0.00026849,10]
[327876956,1716573051729,-529.82,0.00027123,11]
[327876957,1716573051739,-1110.76587597,0.00027397,12]
[327876958,1716573051751,-737.37,0.00027397,12]
[327876959,1716573051761,-500.0,0.00027397,12]
[327876960,1716573051770,-675.84,0.00027397,12]
[327876961,1716573051780,-500.0,0.00027397,12]
[327876962,1716573051789,-619.39,0.00027397,12]
[327876963,1716573051799,-696.11,0.00027397,12]
[327876964,1716573051809,-1765.24,0.00027397,12]
[327876965,1716573051818,-500.0,0.00027397,12]
[327876966,1716573051827,-558.88,0.00027397,12]
[327876967,1716573051836,-532.28,0.00027397,12]
[327876968,1716573051845,-777.93,0.00027397,12]
[327876969,1716573051970,-617.46,0.00027397,12]
[327876970,1716573051980,-5617.02,0.00027397,12]
[327876971,1716573051989,-751.740491,0.00027397,2]
[327876972,1716573052000,-1118.82,0.00027397,12]
[327876973,1716573052009,-751.740491,0.00027397,2]
[327876974,1716573052019,-6010.23,0.00027397,12]
[327876975,1716573052028,-1742.08,0.00027397,12]
[327876976,1716573052039,-544.45,0.00027397,12]
[327876977,1716573052048,-676.570388,0.00027397,2]
[327876978,1716573052058,-676.570388,0.00027397,2]
[327876979,1716573052067,-151.0,0.00027397,2]
[327876980,1716573052077,-500.0,0.00027397,12]
[327876981,1716573052086,-428.12046073,0.00027397,2]
[327876982,1716573052095,-548.94,0.00027397,12]
[327876983,1716573052105,-529.82,0.00027397,12]
[327876984,1716573052114,-151.0,0.00027397,2]
[327876985,1716573052123,-151.0,0.00027397,2]
[327876986,1716573052133,-300.0,0.000274,2]
[327876987,1716573052142,-188.192956,0.0002767,2]
[327876988,1716573052151,-188.192956,0.0002767,2]
[327876989,1716573052160,-625.168513,0.0002767,2]
[327876990,1716573052170,-625.168513,0.0002767,2]
[327876991,1716573052179,-619.7,0.00027671,13]
[327876992,1716573052188,-500.0,0.00027671,13]
[327876993,1716573052197,-500.0,0.00027671,13]
[327876994,1716573052207,-500.0,0.00027671,13]
[327876995,1716573052216,-500.0,0.00027671,13]
[327876996,1716573052225,-500.0,0.00027671,13]
[327876997,1716573052234,-597.87,0.00027671,13]
[327876998,1716573052245,-500.0,0.00027671,13]
[327876999,1716573052255,-754.5,0.00027671,13]
[327877000,1716573052264,-500.0,0.00027671,13]
[327877001,1716573052273,-512.72959941,0.00027671,13]
[327877002,1716573052282,-714.32,0.00027671,13]
[327877003,1716573052291,-500.0,0.00027671,13]
[327877004,1716573052301,-500.0,0.00027671,13]
[327877005,1716573052310,-500.0,0.00027671,13]
[327877006,1716573052319,-675.81,0.00027671,13]
[327877007,1716573052328,-845.77,0.00027671,13]
[327877008,1716573052337,-47.69368421,0.00027671,13]
[327877009,1716573052917,-447.425123,0.00026,2]
[327877010,1716573052927,-151.0,0.00026,2]
[327877011,1716573052936,-515.67,0.00026027,7]
[327877012,1716573052946,-447.425123,0.00026301,2]
[327877013,1716573052955,-151.0,0.00026301,2]
[327877014,1716573052964,-393.28053328,0.00026302,2]
[327877015,1716573141299,1497.56271984,9.999e-05,2]
[327877016,1716573164389,395.60607896,9.999e-05,2]
[327877017,1716573165958,154.82968734,9.999e-05,2]
[327877018,1716573207306,281.75410999,9.999e-05,2]
[327877019,1716573215996,174.73195156,9.999e-05,2]
[327877020,1716573217353,154.82968734,9.999e-05,2]
[327877021,1716573217386,154.82968734,9.999e-05,2]
[327877022,1716573219225,608.453739,0.0001831,2]
[327877025,1716573268402,3757.40233863,0.00018265,2]
[327877026,1716573333027,457.77006769,0.00019999,11]
[327877027,1716573453098,228.88503385,0.00019998,11]
[327877028,1716573573297,12602.7703799,0.00019442,11]
[327877029,1716573588964,154.82968734,9.999e-05,2]
[327877030,1716573640338,186.39835571,0.00015,2]
[327877031,1716573679033,283.81918026,0.000137,2]
[327877032,1716573681665,521.71519389,9.999e-05,2]
[327877033,1716573689318,11216.70092476,0.00015,2]
[327877034,1716573689355,8047.47222802,0.00015,2]
[327877035,1716573691530,3025.24016094,0.00015,2]
[327877036,1716573693579,6301.38518996,0.00019442,11]
[327877037,1716573705318,11868.07692728,0.00015,2]
[327877038,1716573802587,733.4773594,9.999e-05,2]
[327877039,1716573850493,154.82968734,9.999e-05,2]
[327877043,1716573930146,-154.82968734,0.00016131,2]
[327877044,1716573930170,-417.09999357,0.00016132,2]
[327877045,1716573930192,-13.79858907,0.00016193,2]
[327877046,1716573936557,2747.73374466,9.999e-05,2]
[327877049,1716574020112,3000.0,0.00014672,2]
[327877051,1716574039111,-154.82968734,0.00015202,2]
[327877052,1716574039131,-96.27470452,0.00015202,2]
[327877054,1716574044106,-1951.38300659,0.00015202,2]
[327877055,1716574053048,978.63690598,0.00019993,11]
[327877056,1716574053074,2172.055689,0.00019993,11]
[327877060,1716574094537,1899.08832656,9.999e-05,2]
[327877061,1716574113168,1894.87961524,0.000151,2]
[327877062,1716574122171,154.82968734,0.000151,2]
[327877063,1716574146124,-851.72950714,0.00015101,2]
[327877064,1716574146147,-164.28156596,0.00015102,2]
[327877065,1716574146173,-164.28156596,0.00015103,2]
[327877066,1716574146196,-155.07721066,0.00015195,2]
[327877067,1716574146218,-2594.72865998,0.00015195,2]
[327877068,1716574146241,-34962.38017179,0.00015195,2]
[327877069,1716574146267,-15000.0,0.00015196,2]
[327877070,1716574146291,-1738.16398487,0.00015197,2]
[327877071,1716574146315,-1891.98774307,0.00015197,2]
[327877072,1716574146338,-275.02529284,0.00015197,2]
[327877073,1716574146360,-10516.31440065,0.00015198,2]
[327877074,1716574146382,-500.0136814,0.00015205,2]
[327877075,1716574146404,-1581.7754148,0.00015205,2]
[327877076,1716574146429,-814.31491112,0.0001609,2]
[327877077,1716574146452,-24900.0,0.00016199,2]
[327877078,1716574146474,-304.226869,0.00016232,2]
[327877079,1716574146497,-284.17309766,0.00017226,2]
[327877080,1716574146519,-159.24640994,0.00017233,2]
[327877081,1716574146541,-522.78148972,0.00017255,2]
[327877082,1716574146566,-551.93015286,0.00017898,2]
[327877083,1716574153352,-861.06363823,0.00017898,2]
[327877084,1716574153373,-417.09999354,0.00018238,2]
[327877085,1716574169498,193.967947,0.00018456,2]
[327877086,1716574173323,1575.34629749,0.00019992,11]
[327877087,1716574174145,-492.62981358,0.000189,2]
[327877088,1716574174166,-154.9361847,0.00019173,2]
[327877089,1716574174186,-174.60038691,0.00019173,2]
[327877090,1716574174208,-3722.82840409,0.00019177,2]
[327877091,1716574181114,210.6351642,0.00018526,2]
[327877092,1716574181148,75.56965356,0.00018526,2]
[327877093,1716574181171,29.74609944,0.00018526,2]
[327877153,1716574234639,-300.22838516,0.00019177,2]
[327877155,1716574234649,-163.750523,0.00019178,2]